[Event "Titled Tuesday Blitz February 14 Early 2023"]
[White "Kejna, Piotr"]
[Black "Necula, Iulian"]
[WhiteFideId "21821704"]
[BlackFideId "1232380"]
[WhiteElo "2027"]
[BlackElo "1851"]
[Result "1-0"]
[Round "02"]
[TimeControl "180+2"]
[Date "2023.02.15"]
[WhiteClock "0:00:07"]
[BlackClock "0:00:19"]

1. e4 {[%clk 0:03:00]}  c5 {[%clk 0:02:59]} 2. Nf3 {[%clk 0:03:00]}  d6 {[%clk 0:02:59]} 3. d4 {[%clk 0:03:01]}  cxd4 {[%clk 0:03:00]} 4. Nxd4 {[%clk 0:03:02]}  Nf6 {[%clk 0:03:01]} 5. Nc3 {[%clk 0:03:02]}  g6 {[%clk 0:03:01]} 6. Be3 {[%clk 0:03:02]}  Nc6 {[%clk 0:03:01]} 7. f3 {[%clk 0:02:59]}  h5 {[%clk 0:03:00]} 8. Be2 {[%clk 0:02:52]}  Nxd4 {[%clk 0:02:59]} 9. Bxd4 {[%clk 0:02:52]}  Bh6 {[%clk 0:03:00]} 10. Bxf6 {[%clk 0:02:43]}  exf6 {[%clk 0:02:59]} 11. Qd4 {[%clk 0:02:38]}  O-O {[%clk 0:02:47]} 12. Rd1 {[%clk 0:02:34]}  Bf4 {[%clk 0:02:46]} 13. Nd5 {[%clk 0:01:56]}  Be5 {[%clk 0:02:40]} 14. Qb4 {[%clk 0:01:50]}  a5 {[%clk 0:02:33]} 15. Qa3 {[%clk 0:01:46]}  Be6 {[%clk 0:02:25]} 16. O-O {[%clk 0:01:37]}  Bxd5 {[%clk 0:02:21]} 17. Rxd5 {[%clk 0:01:37]}  Qb6+ {[%clk 0:02:19]} 18. Kh1 {[%clk 0:01:34]}  Qxb2 {[%clk 0:02:10]} 19. Qxb2 {[%clk 0:01:14]}  Bxb2 {[%clk 0:02:11]} 20. Rb1 {[%clk 0:01:06]}  Ba3 {[%clk 0:01:55]} 21. Rxb7 {[%clk 0:01:01]}  Rfb8 {[%clk 0:01:44]} 22. Rxa5 {[%clk 0:00:47]}  Rxb7 {[%clk 0:01:34]} 23. Rxa8+ {[%clk 0:00:47]}  Kg7 {[%clk 0:01:35]} 24. g3 {[%clk 0:00:47]}  Bc5 {[%clk 0:01:32]} 25. Kg2 {[%clk 0:00:35]}  Rb2 {[%clk 0:01:32]} 26. Bd3 {[%clk 0:00:34]}  g5 {[%clk 0:01:13]} 27. h3 {[%clk 0:00:27]}  Rb1 {[%clk 0:01:00]} 28. f4 {[%clk 0:00:21]}  g4 {[%clk 0:00:59]} 29. hxg4 {[%clk 0:00:21]}  hxg4 {[%clk 0:00:59]} 30. Be2 {[%clk 0:00:21]}  Rg1+ {[%clk 0:00:58]} 31. Kh2 {[%clk 0:00:21]}  Rc1 {[%clk 0:00:40]} 32. Bxg4 {[%clk 0:00:19]}  Rxc2+ {[%clk 0:00:40]} 33. Kh3 {[%clk 0:00:19]}  Rc3 {[%clk 0:00:40]} 34. Rc8 {[%clk 0:00:11]}  Ra3 {[%clk 0:00:37]} 35. Rc7 {[%clk 0:00:10]}  Rxa2 {[%clk 0:00:36]} 36. Be6 {[%clk 0:00:10]}  Ra1 {[%clk 0:00:34]} 37. Rxf7+ {[%clk 0:00:09]}  Kh6 {[%clk 0:00:30]} 38. Kg4 {[%clk 0:00:09]}  Kg6 {[%clk 0:00:26]} 39. Rd7 {[%clk 0:00:06]}  Ra8 {[%clk 0:00:20]} 40. Bf5+ {[%clk 0:00:06]}  Kh6 {[%clk 0:00:19]} 41. Rh7# {[%clk 0:00:07]} 1-0


[Site "https://www.chess.com"]

[Event "Titled Tuesday Blitz February 14 Early 2023"]
[White "Heinemann, Josefine"]
[Black "Jesusesmifuerza"]
[WhiteFideId "12900460"]
[WhiteElo "2289"]
[BlackElo "2006"]
[Result "1-0"]
[Round "02"]
[TimeControl "180+2"]
[Date "2023.02.15"]
[WhiteClock "0:00:24"]
[BlackClock "0:00:04"]

1. e4 {[%clk 0:03:00]}  c5 {[%clk 0:02:59]} 2. Nf3 {[%clk 0:02:59]}  e6 {[%clk 0:02:59]} 3. d4 {[%clk 0:02:51]}  cxd4 {[%clk 0:03:00]} 4. Nxd4 {[%clk 0:02:52]}  Nf6 {[%clk 0:03:01]} 5. Nc3 {[%clk 0:02:51]}  Nc6 {[%clk 0:03:01]} 6. Nxc6 {[%clk 0:02:42]}  bxc6 {[%clk 0:03:02]} 7. e5 {[%clk 0:02:43]}  Nd5 {[%clk 0:03:01]} 8. Ne4 {[%clk 0:02:43]}  Qc7 {[%clk 0:02:59]} 9. f4 {[%clk 0:02:42]}  Qb6 {[%clk 0:02:59]} 10. c4 {[%clk 0:02:41]}  Bb4+ {[%clk 0:02:55]} 11. Ke2 {[%clk 0:02:41]}  f5 {[%clk 0:02:53]} 12. Nf2 {[%clk 0:02:33]}  Ba6 {[%clk 0:02:46]} 13. Kf3 {[%clk 0:02:31]}  Ne7 {[%clk 0:02:38]} 14. Be3 {[%clk 0:02:17]}  Bc5 {[%clk 0:02:33]} 15. Bxc5 {[%clk 0:02:15]}  Qxc5 {[%clk 0:02:34]} 16. Qd6 {[%clk 0:02:15]}  Qb6 {[%clk 0:02:09]} 17. b3 {[%clk 0:02:01]}  c5 {[%clk 0:02:08]} 18. Rd1 {[%clk 0:01:59]}  Qxd6 {[%clk 0:01:57]} 19. Rxd6 {[%clk 0:02:00]}  Nc6 {[%clk 0:01:46]} 20. h4 {[%clk 0:01:54]}  Bb7 {[%clk 0:01:44]} 21. Kg3 {[%clk 0:01:49]}  Nd4 {[%clk 0:01:38]} 22. h5 {[%clk 0:01:47]}  Ke7 {[%clk 0:01:31]} 23. Nd3 {[%clk 0:01:42]}  Rac8 {[%clk 0:01:24]} 24. Nxc5 {[%clk 0:01:31]}  Rxc5 {[%clk 0:01:02]} 25. Rxd4 {[%clk 0:01:30]}  a5 {[%clk 0:00:58]} 26. Be2 {[%clk 0:01:29]}  Rhc8 {[%clk 0:00:53]} 27. Rhd1 {[%clk 0:01:28]}  R8c7 {[%clk 0:00:53]} 28. a3 {[%clk 0:01:10]}  Be4 {[%clk 0:00:50]} 29. b4 {[%clk 0:01:08]}  axb4 {[%clk 0:00:51]} 30. axb4 {[%clk 0:01:08]}  R5c6 {[%clk 0:00:51]} 31. c5 {[%clk 0:00:59]}  Bd5 {[%clk 0:00:47]} 32. Bf3 {[%clk 0:00:55]}  Bxf3 {[%clk 0:00:37]} 33. Kxf3 {[%clk 0:00:54]}  Ra6 {[%clk 0:00:33]} 34. R1d3 {[%clk 0:00:45]}  Ra2 {[%clk 0:00:30]} 35. g4 {[%clk 0:00:44]}  g6 {[%clk 0:00:29]} 36. hxg6 {[%clk 0:00:41]}  hxg6 {[%clk 0:00:28]} 37. gxf5 {[%clk 0:00:41]}  gxf5 {[%clk 0:00:28]} 38. Rd2 {[%clk 0:00:40]}  Ra3+ {[%clk 0:00:27]} 39. R4d3 {[%clk 0:00:40]}  Ra4 {[%clk 0:00:27]} 40. Rb3 {[%clk 0:00:38]}  Rb7 {[%clk 0:00:19]} 41. Rdb2 {[%clk 0:00:35]}  Rb5 {[%clk 0:00:16]} 42. Ke3 {[%clk 0:00:34]}  Ra1 {[%clk 0:00:15]} 43. Kd3 {[%clk 0:00:33]}  Rc1 {[%clk 0:00:14]} 44. Rh2 {[%clk 0:00:24]}  Rf1 {[%clk 0:00:12]} 45. Rh4 {[%clk 0:00:20]}  Rf3+ {[%clk 0:00:10]} 46. Kc4 {[%clk 0:00:20]}  Rxb3 {[%clk 0:00:04]} 47. Kxb3 {[%clk 0:00:21]}  Kd8 {[%clk 0:00:03]} 48. Kc4 {[%clk 0:00:21]}  Rb8 {[%clk 0:00:02]} 49. Rh8+ {[%clk 0:00:20]}  Kc7 {[%clk 0:00:02]} 50. Rxb8 {[%clk 0:00:21]}  Kxb8 {[%clk 0:00:03]} 51. b5 {[%clk 0:00:22]}  Kc7 {[%clk 0:00:03]} 52. Kb4 {[%clk 0:00:23]}  Kb7 {[%clk 0:00:03]} 53. Ka5 {[%clk 0:00:23]}  Ka7 {[%clk 0:00:03]} 54. c6 {[%clk 0:00:23]}  dxc6 {[%clk 0:00:03]} 55. bxc6 {[%clk 0:00:24]}  Ka8 {[%clk 0:00:01]} 56. Kb6 {[%clk 0:00:23]}  Kb8 {[%clk 0:00:01]} 57. Kb5 {[%clk 0:00:22]}  Kc7 {[%clk 0:00:01]} 58. Kc5 {[%clk 0:00:22]}  Kc8 {[%clk 0:00:01]} 59. Kd6 {[%clk 0:00:23]}  Kd8 {[%clk 0:00:02]} 60. Kxe6 {[%clk 0:00:23]}  Kc7 {[%clk 0:00:03]} 61. Kxf5 {[%clk 0:00:24]}  Kxc6 {[%clk 0:00:04]} 62. Kf6 {[%clk 0:00:24]} 1-0


[Site "https://www.chess.com"]

[Event "Titled Tuesday Blitz February 14 Early 2023"]
[White "Vargas, Mauricio"]
[Black "Lorenzo De La Riva, Lazaro"]
[WhiteFideId "4404572"]
[BlackFideId "2268809"]
[WhiteElo "2035"]
[BlackElo "2404"]
[Result "1-0"]
[Round "02"]
[TimeControl "180+2"]
[Date "2023.02.15"]
[WhiteClock "0:00:14"]
[BlackClock "0:00:20"]

1. e4 {[%clk 0:02:03]}  c5 {[%clk 0:02:57]} 2. Nc3 {[%clk 0:02:02]}  Nc6 {[%clk 0:02:54]} 3. f4 {[%clk 0:02:03]}  d5 {[%clk 0:02:49]} 4. Nf3 {[%clk 0:02:04]}  d4 {[%clk 0:02:47]} 5. Ne2 {[%clk 0:01:58]}  Bg4 {[%clk 0:02:37]} 6. Ng3 {[%clk 0:01:55]}  Nf6 {[%clk 0:02:06]} 7. Bb5 {[%clk 0:01:52]}  Qb6 {[%clk 0:02:02]} 8. Bxc6+ {[%clk 0:01:52]}  Qxc6 {[%clk 0:02:01]} 9. d3 {[%clk 0:01:50]}  O-O-O {[%clk 0:01:58]} 10. O-O {[%clk 0:01:48]}  e6 {[%clk 0:01:55]} 11. e5 {[%clk 0:01:46]}  Nd5 {[%clk 0:01:52]} 12. Ne4 {[%clk 0:01:46]}  f5 {[%clk 0:01:46]} 13. exf6 {[%clk 0:01:44]}  gxf6 {[%clk 0:01:46]} 14. a3 {[%clk 0:01:36]}  Rg8 {[%clk 0:01:43]} 15. Bd2 {[%clk 0:01:26]}  Bh6 {[%clk 0:01:30]} 16. Qe1 {[%clk 0:01:12]}  Qc7 {[%clk 0:00:59]} 17. Rb1 {[%clk 0:01:08]}  Bxf4 {[%clk 0:00:56]} 18. Bxf4 {[%clk 0:00:53]}  Nxf4 {[%clk 0:00:53]} 19. Nxf6 {[%clk 0:00:47]}  Bxf3 {[%clk 0:00:46]} 20. Nxg8 {[%clk 0:00:35]}  Rxg8 {[%clk 0:00:46]} 21. Rxf3 {[%clk 0:00:30]}  Rxg2+ {[%clk 0:00:31]} 22. Kh1 {[%clk 0:00:28]}  Re2 {[%clk 0:00:30]} 23. Qh4 {[%clk 0:00:15]}  e5 {[%clk 0:00:24]} 24. Qg4+ {[%clk 0:00:15]}  Qd7 {[%clk 0:00:20]} 25. Rxf4 {[%clk 0:00:14]} 1-0


[Site "https://www.chess.com"]

[Event "Titled Tuesday Blitz February 14 Early 2023"]
[White "Rustemov, Alexander"]
[Black "Nakamura, Hikaru"]
[WhiteFideId "4119002"]
[BlackFideId "2016192"]
[WhiteElo "2525"]
[BlackElo "2775"]
[Result "0-1"]
[Round "03"]
[TimeControl "180+2"]
[Date "2023.02.15"]
[WhiteClock "0:00:07"]
[BlackClock "0:00:14"]

1. d4 {[%clk 0:03:00]}  d6 {[%clk 0:02:50]} 2. e4 {[%clk 0:03:00]}  f5 {[%clk 0:02:50]} 3. exf5 {[%clk 0:02:57]}  Bxf5 {[%clk 0:02:49]} 4. Bd3 {[%clk 0:02:57]}  Qd7 {[%clk 0:02:47]} 5. Nf3 {[%clk 0:02:55]}  Nf6 {[%clk 0:02:46]} 6. O-O {[%clk 0:02:56]}  Nc6 {[%clk 0:02:43]} 7. Re1 {[%clk 0:02:55]}  Bg4 {[%clk 0:02:42]} 8. h3 {[%clk 0:02:49]}  Bh5 {[%clk 0:02:40]} 9. Be2 {[%clk 0:02:33]}  O-O-O {[%clk 0:02:33]} 10. d5 {[%clk 0:02:32]}  Bxf3 {[%clk 0:02:24]} 11. Bxf3 {[%clk 0:02:31]}  Ne5 {[%clk 0:02:25]} 12. Nc3 {[%clk 0:02:18]}  g5 {[%clk 0:02:22]} 13. Ne4 {[%clk 0:02:03]}  h6 {[%clk 0:02:10]} 14. b3 {[%clk 0:01:42]}  Bg7 {[%clk 0:02:02]} 15. Bb2 {[%clk 0:01:35]}  Nxe4 {[%clk 0:01:56]} 16. Bxe4 {[%clk 0:01:33]}  Rdf8 {[%clk 0:01:49]} 17. Rb1 {[%clk 0:01:28]}  h5 {[%clk 0:01:48]} 18. c4 {[%clk 0:01:19]}  g4 {[%clk 0:01:47]} 19. h4 {[%clk 0:01:16]}  Rf4 {[%clk 0:01:19]} 20. Qc2 {[%clk 0:01:13]}  Rhf8 {[%clk 0:01:17]} 21. Re2 {[%clk 0:01:13]}  g3 {[%clk 0:01:05]} 22. fxg3 {[%clk 0:01:12]}  R4f7 {[%clk 0:01:05]} 23. Bg6 {[%clk 0:01:02]}  Rf6 {[%clk 0:00:47]} 24. Bxe5 {[%clk 0:00:58]}  dxe5 {[%clk 0:00:48]} 25. Bxh5 {[%clk 0:00:58]}  Qd6 {[%clk 0:00:49]} 26. Qe4 {[%clk 0:00:51]}  Kb8 {[%clk 0:00:38]} 27. Kh2 {[%clk 0:00:51]}  Qc5 {[%clk 0:00:30]} 28. Rbe1 {[%clk 0:00:49]}  Rf1 {[%clk 0:00:29]} 29. Rxf1 {[%clk 0:00:43]}  Rxf1 {[%clk 0:00:30]} 30. Bf3 {[%clk 0:00:40]}  a5 {[%clk 0:00:30]} 31. Kh3 {[%clk 0:00:39]}  Rh1+ {[%clk 0:00:28]} 32. Kg4 {[%clk 0:00:39]}  Qd6 {[%clk 0:00:29]} 33. Qf5 {[%clk 0:00:38]}  Bf6 {[%clk 0:00:24]} 34. Qe6 {[%clk 0:00:38]}  Qd8 {[%clk 0:00:24]} 35. Qf7 {[%clk 0:00:37]}  Qd7+ {[%clk 0:00:24]} 36. Qe6 {[%clk 0:00:35]}  Qe8 {[%clk 0:00:24]} 37. Rxe5 {[%clk 0:00:34]}  Bxe5 {[%clk 0:00:21]} 38. Qxe5 {[%clk 0:00:35]}  Qg8+ {[%clk 0:00:20]} 39. Qg5 {[%clk 0:00:35]}  Qh7 {[%clk 0:00:20]} 40. Qf5 {[%clk 0:00:32]}  Qg7+ {[%clk 0:00:20]} 41. Qg5 {[%clk 0:00:32]}  Qh7 {[%clk 0:00:17]} 42. Qf5 {[%clk 0:00:32]}  Qh8 {[%clk 0:00:17]} 43. h5 {[%clk 0:00:30]}  Re1 {[%clk 0:00:15]} 44. Kg5 {[%clk 0:00:18]}  Re5 {[%clk 0:00:15]} 45. g4 {[%clk 0:00:14]}  Qf6+ {[%clk 0:00:13]} 46. Kf4 {[%clk 0:00:14]}  Rxf5+ {[%clk 0:00:13]} 47. gxf5 {[%clk 0:00:15]}  Qh6+ {[%clk 0:00:13]} 48. Kg4 {[%clk 0:00:11]}  Kc8 {[%clk 0:00:14]} 49. g3 {[%clk 0:00:07]}  Kd8 {[%clk 0:00:14]} 0-1


[Site "https://www.chess.com"]

[Event "Titled Tuesday Blitz February 14 Early 2023"]
[White "Sarana, Alexey"]
[Black "Orozbaev, Eldiar"]
[WhiteFideId "24133795"]
[BlackFideId "13802240"]
[WhiteElo "2685"]
[BlackElo "2235"]
[Result "1-0"]
[Round "03"]
[TimeControl "180+2"]
[Date "2023.02.15"]
[WhiteClock "0:00:13"]
[BlackClock "0:00:02"]

1. c4 {[%clk 0:03:00]}  b6 {[%clk 0:02:53]} 2. e4 {[%clk 0:02:56]}  Bb7 {[%clk 0:02:51]} 3. Nc3 {[%clk 0:02:56]}  e5 {[%clk 0:02:51]} 4. d3 {[%clk 0:02:39]}  Nc6 {[%clk 0:02:48]} 5. g3 {[%clk 0:02:38]}  Bc5 {[%clk 0:02:48]} 6. Bg2 {[%clk 0:02:37]}  Nf6 {[%clk 0:02:47]} 7. h3 {[%clk 0:02:36]}  h6 {[%clk 0:02:47]} 8. Nge2 {[%clk 0:02:37]}  O-O {[%clk 0:02:44]} 9. g4 {[%clk 0:02:33]}  a6 {[%clk 0:02:31]} 10. Ng3 {[%clk 0:02:22]}  b5 {[%clk 0:02:14]} 11. g5 {[%clk 0:02:21]}  hxg5 {[%clk 0:02:11]} 12. Bxg5 {[%clk 0:02:22]}  Nd4 {[%clk 0:01:56]} 13. Nd5 {[%clk 0:01:23]}  Bxd5 {[%clk 0:01:55]} 14. exd5 {[%clk 0:01:23]}  Bb4+ {[%clk 0:01:50]} 15. Kf1 {[%clk 0:01:23]}  Be7 {[%clk 0:01:50]} 16. h4 {[%clk 0:01:20]}  Nh7 {[%clk 0:01:38]} 17. Be3 {[%clk 0:01:15]}  f5 {[%clk 0:01:28]} 18. Bxd4 {[%clk 0:01:10]}  exd4 {[%clk 0:01:29]} 19. Qh5 {[%clk 0:01:08]}  Qe8 {[%clk 0:01:23]} 20. d6 {[%clk 0:00:45]}  Bxd6 {[%clk 0:01:20]} 21. Bxa8 {[%clk 0:00:46]}  Qxa8 {[%clk 0:01:15]} 22. Rg1 {[%clk 0:00:45]}  Bxg3 {[%clk 0:01:10]} 23. Rxg3 {[%clk 0:00:44]}  Qh1+ {[%clk 0:01:11]} 24. Rg1 {[%clk 0:00:44]}  Qh3+ {[%clk 0:01:11]} 25. Ke2 {[%clk 0:00:44]}  Nf6 {[%clk 0:01:09]} 26. Qg6 {[%clk 0:00:40]}  Rf7 {[%clk 0:01:02]} 27. Rae1 {[%clk 0:00:36]}  bxc4 {[%clk 0:00:57]} 28. Qg3 {[%clk 0:00:20]}  Qxg3 {[%clk 0:00:50]} 29. fxg3 {[%clk 0:00:21]}  cxd3+ {[%clk 0:00:50]} 30. Kxd3 {[%clk 0:00:21]}  c5 {[%clk 0:00:50]} 31. Re5 {[%clk 0:00:17]}  Ne4 {[%clk 0:00:48]} 32. Rf1 {[%clk 0:00:17]}  Nxg3 {[%clk 0:00:48]} 33. Rf3 {[%clk 0:00:17]}  Ne4 {[%clk 0:00:13]} 34. Rfxf5 {[%clk 0:00:17]}  Nf2+ {[%clk 0:00:05]} 35. Ke2 {[%clk 0:00:18]}  Ng4 {[%clk 0:00:02]} 36. Re8+ {[%clk 0:00:13]} 1-0


[Site "https://www.chess.com"]

[Event "Titled Tuesday Blitz February 14 Early 2023"]
[White "Murzin, Volodar"]
[Black "Daneshvar, Bardiya"]
[WhiteFideId "44155573"]
[BlackFideId "12576468"]
[WhiteElo "2604"]
[BlackElo "2540"]
[Result "1-0"]
[Round "03"]
[TimeControl "180+2"]
[Date "2023.02.15"]
[WhiteClock "0:00:08"]
[BlackClock "0:00:54"]

1. e4 {[%clk 0:02:50]}  c6 {[%clk 0:03:00]} 2. d4 {[%clk 0:02:50]}  d5 {[%clk 0:03:00]} 3. exd5 {[%clk 0:02:50]}  cxd5 {[%clk 0:03:01]} 4. Bd3 {[%clk 0:02:51]}  Nf6 {[%clk 0:03:00]} 5. c3 {[%clk 0:02:52]}  Nc6 {[%clk 0:03:00]} 6. Bf4 {[%clk 0:02:51]}  g6 {[%clk 0:02:59]} 7. Nd2 {[%clk 0:02:50]}  Bg7 {[%clk 0:02:59]} 8. Ngf3 {[%clk 0:02:50]}  O-O {[%clk 0:02:58]} 9. O-O {[%clk 0:02:50]}  Bf5 {[%clk 0:02:54]} 10. Bxf5 {[%clk 0:02:49]}  gxf5 {[%clk 0:02:54]} 11. Ne1 {[%clk 0:02:50]}  Ne4 {[%clk 0:02:54]} 12. Nd3 {[%clk 0:02:50]}  e6 {[%clk 0:02:55]} 13. f3 {[%clk 0:02:49]}  Nd6 {[%clk 0:02:55]} 14. Kh1 {[%clk 0:02:47]}  Kh8 {[%clk 0:02:54]} 15. Qe1 {[%clk 0:02:45]}  Rg8 {[%clk 0:02:54]} 16. Qf2 {[%clk 0:02:42]}  Bf6 {[%clk 0:02:53]} 17. Rae1 {[%clk 0:02:41]}  Rg6 {[%clk 0:02:50]} 18. Rg1 {[%clk 0:02:40]}  h5 {[%clk 0:02:44]} 19. Be5 {[%clk 0:01:53]}  Kh7 {[%clk 0:02:35]} 20. Nf1 {[%clk 0:01:10]}  Nc4 {[%clk 0:02:23]} 21. Bf4 {[%clk 0:01:01]}  Bh4 {[%clk 0:02:16]} 22. g3 {[%clk 0:01:00]}  Bf6 {[%clk 0:02:15]} 23. Ne3 {[%clk 0:01:00]}  b5 {[%clk 0:02:12]} 24. g4 {[%clk 0:00:37]}  Nxe3 {[%clk 0:01:55]} 25. Rxe3 {[%clk 0:00:32]}  hxg4 {[%clk 0:01:52]} 26. fxg4 {[%clk 0:00:33]}  fxg4 {[%clk 0:01:53]} 27. Qe2 {[%clk 0:00:31]}  Ne7 {[%clk 0:01:31]} 28. Rxg4 {[%clk 0:00:24]}  Kg7 {[%clk 0:01:12]} 29. Ne5 {[%clk 0:00:16]}  Qh8 {[%clk 0:01:08]} 30. Reg3 {[%clk 0:00:09]}  Rxg4 {[%clk 0:00:59]} 31. Qxg4+ {[%clk 0:00:06]}  Kf8 {[%clk 0:01:00]} 32. Rh3 {[%clk 0:00:06]}  Bxe5 {[%clk 0:00:55]} 33. Bxe5 {[%clk 0:00:07]}  Qg8 {[%clk 0:00:54]} 34. Rh8 {[%clk 0:00:08]} 1-0


[Site "https://www.chess.com"]

[Event "Titled Tuesday Blitz February 14 Early 2023"]
[White "Bortnyk, Olexandr"]
[Black "Seo, Jung Min"]
[WhiteFideId "14120828"]
[BlackFideId "1734687"]
[WhiteElo "2605"]
[BlackElo "2494"]
[Result "0-1"]
[Round "03"]
[TimeControl "180+2"]
[Date "2023.02.15"]
[WhiteClock "0:00:01"]
[BlackClock "0:00:04"]

1. d4 {[%clk 0:03:00]}  Nf6 {[%clk 0:02:59]} 2. Nc3 {[%clk 0:03:00]}  d5 {[%clk 0:02:58]} 3. Bf4 {[%clk 0:03:00]}  c5 {[%clk 0:02:56]} 4. e4 {[%clk 0:03:00]}  Nxe4 {[%clk 0:02:55]} 5. Nxe4 {[%clk 0:03:00]}  dxe4 {[%clk 0:02:55]} 6. dxc5 {[%clk 0:03:01]}  Qa5+ {[%clk 0:02:55]} 7. c3 {[%clk 0:03:01]}  Qxc5 {[%clk 0:02:55]} 8. Qa4+ {[%clk 0:03:02]}  Nc6 {[%clk 0:02:55]} 9. Qxe4 {[%clk 0:03:02]}  g6 {[%clk 0:02:52]} 10. Nf3 {[%clk 0:03:02]}  Bg7 {[%clk 0:02:52]} 11. Rd1 {[%clk 0:03:02]}  O-O {[%clk 0:02:45]} 12. Be3 {[%clk 0:03:02]}  Qf5 {[%clk 0:02:41]} 13. Qa4 {[%clk 0:03:01]}  Be6 {[%clk 0:02:38]} 14. Be2 {[%clk 0:02:58]}  Rad8 {[%clk 0:02:34]} 15. O-O {[%clk 0:02:57]}  a6 {[%clk 0:02:25]} 16. h3 {[%clk 0:02:55]}  h6 {[%clk 0:02:15]} 17. Bb6 {[%clk 0:02:43]}  Rxd1 {[%clk 0:02:14]} 18. Rxd1 {[%clk 0:02:44]}  g5 {[%clk 0:02:11]} 19. Bd3 {[%clk 0:02:40]}  Qf6 {[%clk 0:02:10]} 20. Be4 {[%clk 0:02:38]}  Bf5 {[%clk 0:02:09]} 21. Bxc6 {[%clk 0:02:35]}  Qxc6 {[%clk 0:02:02]} 22. Qxc6 {[%clk 0:02:34]}  bxc6 {[%clk 0:02:03]} 23. Rd2 {[%clk 0:02:06]}  Rb8 {[%clk 0:02:00]} 24. Bc5 {[%clk 0:02:06]}  Bf6 {[%clk 0:01:50]} 25. a4 {[%clk 0:02:05]}  Kf8 {[%clk 0:01:43]} 26. a5 {[%clk 0:02:02]}  Ke8 {[%clk 0:01:43]} 27. Bb6 {[%clk 0:02:02]}  Be4 {[%clk 0:01:40]} 28. Nd4 {[%clk 0:02:00]}  Bxd4 {[%clk 0:01:30]} 29. Rxd4 {[%clk 0:02:01]}  Bd5 {[%clk 0:01:30]} 30. f4 {[%clk 0:01:47]}  f6 {[%clk 0:01:30]} 31. c4 {[%clk 0:01:45]}  Be6 {[%clk 0:01:29]} 32. b4 {[%clk 0:01:43]}  Kf7 {[%clk 0:01:24]} 33. Kf2 {[%clk 0:01:41]}  gxf4 {[%clk 0:01:12]} 34. Rxf4 {[%clk 0:01:39]}  Rb7 {[%clk 0:01:12]} 35. Rh4 {[%clk 0:01:36]}  Kg6 {[%clk 0:01:10]} 36. Ke2 {[%clk 0:01:34]}  Rd7 {[%clk 0:01:09]} 37. Bc5 {[%clk 0:01:23]}  h5 {[%clk 0:01:04]} 38. Re4 {[%clk 0:01:20]}  Kf7 {[%clk 0:01:04]} 39. Rf4 {[%clk 0:01:20]}  Rd8 {[%clk 0:00:59]} 40. b5 {[%clk 0:01:10]}  axb5 {[%clk 0:00:58]} 41. cxb5 {[%clk 0:01:11]}  cxb5 {[%clk 0:00:39]} 42. a6 {[%clk 0:01:11]}  Rg8 {[%clk 0:00:36]} 43. Kf2 {[%clk 0:01:08]}  Bd5 {[%clk 0:00:36]} 44. g3 {[%clk 0:01:07]}  e5 {[%clk 0:00:35]} 45. Rb4 {[%clk 0:01:06]}  Bc6 {[%clk 0:00:35]} 46. a7 {[%clk 0:01:06]}  Ke6 {[%clk 0:00:34]} 47. Rh4 {[%clk 0:01:04]}  Rh8 {[%clk 0:00:27]} 48. g4 {[%clk 0:01:02]}  Rd8 {[%clk 0:00:24]} 49. Rxh5 {[%clk 0:01:01]}  Rd2+ {[%clk 0:00:22]} 50. Ke3 {[%clk 0:00:52]}  Rc2 {[%clk 0:00:23]} 51. Bb4 {[%clk 0:00:38]}  Rc4 {[%clk 0:00:21]} 52. Bf8 {[%clk 0:00:37]}  Ra4 {[%clk 0:00:21]} 53. Rh7 {[%clk 0:00:37]}  b4 {[%clk 0:00:20]} 54. Rc7 {[%clk 0:00:35]}  Bd5 {[%clk 0:00:17]} 55. Re7+ {[%clk 0:00:31]}  Kd6 {[%clk 0:00:17]} 56. Rb7+ {[%clk 0:00:23]}  Ke6 {[%clk 0:00:16]} 57. Re7+ {[%clk 0:00:23]}  Kd6 {[%clk 0:00:16]} 58. h4 {[%clk 0:00:24]}  b3 {[%clk 0:00:15]} 59. Kd2 {[%clk 0:00:19]}  Kc6 {[%clk 0:00:06]} 60. Kc3 {[%clk 0:00:13]}  Ra2 {[%clk 0:00:05]} 61. h5 {[%clk 0:00:08]}  b2 {[%clk 0:00:03]} 62. a8=Q+ {[%clk 0:00:03]}  Rxa8 {[%clk 0:00:03]} 63. Kxb2 {[%clk 0:00:04]}  Rxf8 {[%clk 0:00:03]} 64. h6 {[%clk 0:00:05]}  Rh8 {[%clk 0:00:03]} 65. h7 {[%clk 0:00:05]}  Kd6 {[%clk 0:00:04]} 66. Rg7 {[%clk 0:00:04]}  Be4 {[%clk 0:00:04]} 67. g5 {[%clk 0:00:03]}  fxg5 {[%clk 0:00:04]} 68. Rxg5 {[%clk 0:00:04]}  Rxh7 {[%clk 0:00:04]} 69. Kc3 {[%clk 0:00:05]}  Kd5 {[%clk 0:00:05]} 70. Kd2 {[%clk 0:00:05]}  Rh2+ {[%clk 0:00:04]} 71. Ke3 {[%clk 0:00:05]}  Rh3+ {[%clk 0:00:05]} 72. Kf2 {[%clk 0:00:05]}  Kd4 {[%clk 0:00:05]} 73. Rg8 {[%clk 0:00:05]}  Rh2+ {[%clk 0:00:05]} 74. Kf1 {[%clk 0:00:03]}  Rg2 {[%clk 0:00:05]} 75. Ra8 {[%clk 0:00:03]}  Ke3 {[%clk 0:00:05]} 76. Ra3+ {[%clk 0:00:03]}  Kf4 {[%clk 0:00:05]} 77. Ra4 {[%clk 0:00:04]}  Rb2 {[%clk 0:00:05]} 78. Ra3 {[%clk 0:00:03]}  Bf3 {[%clk 0:00:05]} 79. Ke1 {[%clk 0:00:03]}  e4 {[%clk 0:00:05]} 80. Ra4 {[%clk 0:00:03]}  Kg3 {[%clk 0:00:05]} 81. Ra3 {[%clk 0:00:03]}  Re2+ {[%clk 0:00:05]} 82. Kf1 {[%clk 0:00:02]}  Kf4 {[%clk 0:00:04]} 83. Rb3 {[%clk 0:00:02]}  Rd2 {[%clk 0:00:04]} 84. Ke1 {[%clk 0:00:03]}  Rd8 {[%clk 0:00:04]} 85. Kf2 {[%clk 0:00:03]}  e3+ {[%clk 0:00:04]} 86. Rxe3 {[%clk 0:00:01]}  Rd2+ {[%clk 0:00:04]} 87. Re2 {[%clk 0:00:01]}  Rxe2+ {[%clk 0:00:04]} 0-1


[Site "https://www.chess.com"]